[Event "6e Open International d'Echecs des Sable"]
[Site "Sables d'Olonne, France"]
[Date "2019.07.15"]
[Round "3.3"]
[White "Redondo Arguelles, Graciela"]
[Black "Duboue, Peio"]
[Result "1/2-1/2"]
[ECO "C84"]
[WhiteElo "2043"]
[BlackElo "2409"]
[Annotator "jeanluc"]
[PlyCount "135"]
[EventDate "2019.??.??"]
[TimeControl "1/40:0"]
[WhiteClock "0:01:40"]
[BlackClock "0:10:33"]

1. e4 {[%emt 0:00:00]} e5 {[%emt 0:00:00]} 2. Nf3 {[%emt 0:00:00]} Nc6 {
[%emt 0:00:00]} 3. Bb5 {[%emt 0:00:00]} Nf6 {[%emt 0:00:00]} 4. d3 {[%emt 0:00:
00]} d6 {[%emt 0:00:00]} 5. c3 {[%emt 0:00:00]} Be7 {[%emt 0:00:00]} 6. O-O {
[%emt 0:00:00]} O-O {[%emt 0:00:00]} 7. Re1 {[%emt 0:00:00]} a6 {[%emt 0:00:00]
} 8. Ba4 {[%emt 0:00:00]} b5 {[%emt 0:00:00]} 9. Bc2 {[%emt 0:00:00]} Bb7 {
[%emt 0:00:00]} 10. Nbd2 {[%emt 0:00:00]} d5 {[%emt 0:00:00]} 11. Nf1 {[%emt 0:
00:00]} Re8 {[%emt 0:00:00]} 12. Ng3 {[%emt 0:00:00]} Bf8 {[%emt 0:00:00]} 13.
Bg5 {[%emt 0:00:00]} dxe4 {[%emt 0:00:00]} 14. dxe4 {[%emt 0:00:00]} Qxd1 {
[%emt 0:00:00]} 15. Raxd1 {[%emt 0:00:00]} Be7 {[%emt 0:00:00]} 16. Nf5 {
[%emt 0:00:00]} Bd8 {[%emt 0:00:00]} 17. Nd2 {[%emt 0:00:00]} h6 {[%emt 0:00:
00]} 18. Bh4 {[%emt 0:00:00]} Nh7 {[%emt 0:00:00]} 19. Bxd8 {[%emt 0:00:00]}
Raxd8 {[%emt 0:00:00]} 20. Nb3 {[%emt 0:00:00]} Bc8 {[%emt 0:00:00]} 21. Ne3 {
[%emt 0:00:00]} Ng5 {[%emt 0:00:00]} 22. Nc5 {[%emt 0:00:00]} Ne6 {[%emt 0:00:
00]} 23. Nxe6 {[%emt 0:00:00]} Bxe6 {[%emt 0:00:00]} 24. Bb3 {[%emt 0:00:00]}
Kf8 {[%emt 0:00:00]} 25. Bxe6 {[%emt 0:00:00]} Rxe6 {[%emt 0:00:00]} 26. Rxd8+
{[%emt 0:00:00]} Nxd8 {[%emt 0:00:00]} 27. Rd1 {[%emt 0:00:00]} Rd6 {[%emt 0:
00:00]} 28. Rxd6 {[%emt 0:00:00]} cxd6 {[%emt 0:00:00]} 29. Nf5 {[%emt 0:00:00]
} Nb7 {[%emt 0:00:00]} 30. b4 {[%emt 0:00:00]} h5 {[%emt 0:00:00]} 31. Kf1 {
[%emt 0:00:00]} g6 {[%emt 0:00:00]} 32. Ne3 {[%emt 0:00:00]} Nd8 {[%emt 0:00:
00]} 33. Nd5 {[%emt 0:03:36]} Ne6 {[%emt 0:00:00]} 34. Ke2 {[%emt 0:00:23]} Ke8
{[%emt 0:00:00]} 35. Kd3 {[%emt 0:00:58]} Kd7 {[%emt 0:00:00]} 36. g3 {[%emt 0:
01:37]} Ng5 {[%emt 0:00:00]} 37. Ke3 {[%emt 0:03:14]} f5 {[%emt 0:00:00]} 38.
f3 {[%emt 0:01:38]} fxe4 {[%emt 0:00:00]} 39. fxe4 {[%emt 0:00:39]} Ne6 {
[%emt 0:00:00]} 40. h4 {[%emt 0:03:46]} Nd8 {[%emt 0:00:00]} 41. Kf3 {[%emt 0:
02:04]} Nc6 {[%emt 0:00:00]} 42. g4 {[%emt 0:06:34]} hxg4+ {[%emt 0:05:09]} 43.
Kxg4 {[%emt 0:00:16]} Ne7 {[%emt 0:01:06]} 44. Nf6+ {[%emt 0:00:00]} Ke6 {
[%emt 0:00:00]} 45. Ne8 {[%emt 0:00:00]} d5 {[%emt 0:00:00]} 46. Kf3 {[%emt 0:
00:00]} Kd7 {[%emt 0:01:37]} 47. Nf6+ {[%emt 0:00:00]} Kd6 {[%emt 0:00:13]} 48.
Ne8+ {[%emt 0:00:00]} Kc6 {[%emt 0:01:07]} 49. Nf6 {[%emt 0:00:00]} Kd6 {
[%emt 0:02:58]} 50. Ne8+ {[%emt 0:00:00]} Kd7 {[%emt 0:00:13]} 51. Nf6+ {
[%emt 0:00:00]} Ke6 {[%emt 0:00:12]} 52. Ne8 {[%emt 0:00:00]} dxe4+ {[%emt 0:
00:14]} 53. Kxe4 {[%emt 0:00:04]} Nf5 {[%emt 0:01:17]} 54. Nc7+ {[%emt 0:02:30]
} Kd6 {[%emt 0:00:12]} 55. Nxa6 {[%emt 0:00:19]} Nxh4 {[%emt 0:00:13]} 56. Nc5
{[%emt 0:00:31]} g5 {[%emt 0:01:20]} 57. Nd3 {[%emt 0:03:00]} Ng6 {[%emt 0:04:
14]} 58. Kf5 {[%emt 0:01:30]} Ne7+ {[%emt 0:00:15]} 59. Kxg5 {[%emt 0:02:41]}
Nd5 {[%emt 0:05:08]} 60. Kf5 {[%emt 0:01:05]} Nxc3 {[%emt 0:00:14]} 61. Nxe5 {
[%emt 0:00:40]} Kd5 {[%emt 0:01:03]} 62. Nd7 {[%emt 0:03:31]} Kc4 {[%emt 0:03:
58]} 63. a3 {[%emt 0:00:45]} Kb3 {[%emt 0:01:37]} 64. Ne5 {[%emt 0:00:36]} Kxa3
{[%emt 0:01:06]} 65. Nc6 {[%emt 0:00:25]} Nd5 {[%emt 0:00:14]} 66. Nd4 {
[%emt 0:00:24]} Kxb4 {[%emt 0:00:14]} 67. Nxb5 {[%emt 0:00:14]} Kxb5 {[%emt 0:
00:13]} 68. Ke4 {[%emt 0:00:04]} 1/2-1/2

[Event "6e Open International d'Echecs des Sable"]
[Site "Sables d'Olonne, France"]
[Date "2019.07.15"]
[Round "3.4"]
[White "Colin, Vincent"]
[Black "Angermuende, Dirk"]
[Result "1-0"]
[ECO "B14"]
[WhiteElo "2370"]
[BlackElo "1972"]
[Annotator "jeanluc"]
[PlyCount "81"]
[EventDate "2019.??.??"]
[TimeControl "1/40:0"]
[WhiteClock "0:41:49"]
[BlackClock "0:02:09"]

1. Nf3 {[%emt 0:00:00]} Nf6 {[%emt 0:00:00]} 2. c4 {[%emt 0:00:00]} e6 {
[%emt 0:00:00]} 3. e3 {[%emt 0:00:00]} c5 {[%emt 0:00:00]} 4. d4 {[%emt 0:00:
00]} cxd4 {[%emt 0:00:00]} 5. exd4 {[%emt 0:00:00]} d5 {[%emt 0:00:00]} 6. Nc3
{[%emt 0:00:00]} Nc6 {[%emt 0:00:00]} 7. c5 {[%emt 0:00:00]} Ne4 {[%emt 0:00:
00]} 8. Qc2 {[%emt 0:00:00]} Nxc3 {[%emt 0:00:00]} 9. Qxc3 {[%emt 0:00:00]} e5
{[%emt 0:00:00]} 10. Nxe5 {[%emt 0:00:00]} Nxe5 {[%emt 0:00:00]} 11. dxe5 {
[%emt 0:00:00]} d4 {[%emt 0:00:00]} 12. Qg3 {[%emt 0:00:00]} Bxc5 {[%emt 0:00:
00]} 13. Qxg7 {[%emt 0:00:00]} Bb4+ {[%emt 0:00:00]} 14. Kd1 {[%emt 0:00:00]}
Rf8 {[%emt 0:00:00]} 15. Bd3 {[%emt 0:00:00]} Be6 {[%emt 0:00:00]} 16. Qxh7 {
[%emt 0:00:00]} Qa5 {[%emt 0:00:00]} 17. Bh6 {[%emt 0:00:00]} Bb3+ {[%emt 0:03:
10]} 18. Ke2 {[%emt 0:00:00]} Qxe5+ {[%emt 0:01:06]} 19. Qe4 {[%emt 0:00:00]}
Qxe4+ {[%emt 0:00:42]} 20. Bxe4 {[%emt 0:00:00]} Bc4+ {[%emt 0:00:54]} 21. Kf3
{[%emt 0:00:00]} Rh8 {[%emt 0:02:48]} 22. Bg7 {[%emt 0:00:00]} Rg8 {[%emt 0:00:
20]} 23. Bxd4 {[%emt 0:00:00]} Rd8 {[%emt 0:02:56]} 24. Be3 {[%emt 0:00:00]}
Rd6 {[%emt 0:01:33]} 25. g3 {[%emt 0:00:00]} Be6 {[%emt 0:01:28]} 26. Kg2 {
[%emt 0:00:00]} Bd5 {[%emt 0:00:39]} 27. Bxd5 {[%emt 0:00:00]} Rxd5 {[%emt 0:
00:11]} 28. Bxa7 {[%emt 0:00:00]} Rg6 {[%emt 0:00:56]} 29. Be3 {[%emt 0:00:00]}
Rgd6 {[%emt 0:00:35]} 30. a3 {[%emt 0:00:00]} Bd2 {[%emt 0:00:29]} 31. Bxd2 {
[%emt 0:00:00]} Rxd2 {[%emt 0:00:14]} 32. b4 {[%emt 0:00:00]} R6d3 {[%emt 0:00:
40]} 33. Rhe1+ {[%emt 0:00:00]} Kf8 {[%emt 0:00:13]} 34. Re4 {[%emt 0:00:00]}
Rb2 {[%emt 0:00:56]} 35. a4 {[%emt 0:00:00]} Rdb3 {[%emt 0:00:53]} 36. b5 {
[%emt 0:00:00]} b6 {[%emt 0:01:06]} 37. Rc1 {[%emt 0:00:00]} Kg7 {[%emt 0:02:
00]} 38. Rc6 {[%emt 0:00:00]} Rb4 {[%emt 0:00:13]} 39. Rxb4 {[%emt 0:00:00]}
Rxb4 {[%emt 0:00:15]} 40. Rxb6 {[%emt 0:00:00]} Rxa4 {[%emt 0:00:14]} 41. Rb8 {
[%emt 0:00:00]} 1-0

[Event "6e Open International d'Echecs des Sable"]
[Site "Sables d'Olonne, France"]
[Date "2019.07.15"]
[Round "3.5"]
[White "Mariette, Lucas"]
[Black "Louassier, Cedric"]
[Result "1-0"]
[ECO "B90"]
[WhiteElo "2244"]
[BlackElo "1840"]
[Annotator "jeanluc"]
[PlyCount "137"]
[EventDate "2019.??.??"]
[TimeControl "1/40:0"]
[WhiteClock "1:02:24"]
[BlackClock "0:08:34"]

1. e4 {[%emt 0:00:00]} c5 {[%emt 0:00:00]} 2. Nf3 {[%emt 0:00:00]} d6 {[%emt 0:
00:00]} 3. d4 {[%emt 0:00:00]} cxd4 {[%emt 0:00:00]} 4. Nxd4 {[%emt 0:00:00]}
Nf6 {[%emt 0:00:00]} 5. Nc3 {[%emt 0:00:00]} a6 {[%emt 0:00:00]} 6. Be3 {
[%emt 0:00:00]} e5 {[%emt 0:00:00]} 7. Nb3 {[%emt 0:00:00]} Be7 {[%emt 0:00:00]
} 8. f3 {[%emt 0:00:00]} Be6 {[%emt 0:00:00]} 9. Qd2 {[%emt 0:00:00]} d5 {
[%emt 0:00:00]} 10. exd5 {[%emt 0:00:00]} Nxd5 {[%emt 0:00:00]} 11. Nxd5 {
[%emt 0:00:00]} Qxd5 {[%emt 0:00:00]} 12. Qxd5 {[%emt 0:00:00]} Bxd5 {[%emt 0:
00:00]} 13. O-O-O {[%emt 0:00:00]} Be6 {[%emt 0:00:00]} 14. Na5 {[%emt 0:00:00]
} b5 {[%emt 0:00:00]} 15. a4 {[%emt 0:00:00]} bxa4 {[%emt 0:00:00]} 16. Bc4 {
[%emt 0:00:00]} Bxc4 {[%emt 0:00:00]} 17. Nxc4 {[%emt 0:00:00]} Nd7 {[%emt 0:
00:00]} 18. Rd5 {[%emt 0:00:00]} a3 {[%emt 0:00:00]} 19. b3 {[%emt 0:00:00]} f6
{[%emt 0:00:00]} 20. Rhd1 {[%emt 0:00:00]} Rd8 {[%emt 0:00:23]} 21. Kb1 {
[%emt 0:00:00]} Nb8 {[%emt 0:02:18]} 22. Rxd8+ {[%emt 0:00:00]} Bxd8 {[%emt 0:
00:18]} 23. Nd6+ {[%emt 0:00:00]} Kf8 {[%emt 0:04:34]} 24. Bc5 {[%emt 0:00:00]}
Be7 {[%emt 0:00:22]} 25. Nf5 {[%emt 0:00:00]} Bxc5 {[%emt 0:01:11]} 26. Rd8+ {
[%emt 0:00:00]} Kf7 {[%emt 0:00:17]} 27. Rxh8 {[%emt 0:00:00]} Bf8 {[%emt 0:03:
33]} 28. Rxh7 {[%emt 0:00:00]} Nc6 {[%emt 0:01:29]} 29. Rh4 {[%emt 0:00:00]}
Nb4 {[%emt 0:00:54]} 30. Rc4 {[%emt 0:00:00]} a5 {[%emt 0:03:01]} 31. c3 {
[%emt 0:00:00]} Nd5 {[%emt 0:00:29]} 32. Ka2 {[%emt 0:00:00]} g6 {[%emt 0:00:
22]} 33. Nh4 {[%emt 0:00:00]} f5 {[%emt 0:01:36]} 34. g3 {[%emt 0:00:00]} Be7 {
[%emt 0:00:51]} 35. Ng2 {[%emt 0:00:00]} g5 {[%emt 0:00:18]} 36. Ne1 {[%emt 0:
00:00]} e4 {[%emt 0:00:36]} 37. fxe4 {[%emt 0:00:00]} fxe4 {[%emt 0:00:16]} 38.
Nc2 {[%emt 0:00:00]} e3 {[%emt 0:00:33]} 39. Nd4 {[%emt 0:00:00]} Kf6 {[%emt 0:
01:24]} 40. Rc6+ {[%emt 0:00:00]} Kf7 {[%emt 0:00:40]} 41. Kb1 {[%emt 0:00:00]}
Bf6 {[%emt 0:00:00]} 42. Ne2 {[%emt 0:00:00]} Ke7 {[%emt 0:00:00]} 43. Ka2 {
[%emt 0:00:00]} Kd7 {[%emt 0:00:00]} 44. Rc5 {[%emt 0:00:00]} Kd6 {[%emt 0:00:
00]} 45. Rc4 {[%emt 0:00:00]} Nb6 {[%emt 0:00:00]} 46. Re4 {[%emt 0:00:00]} Nd5
{[%emt 0:00:00]} 47. Kxa3 {[%emt 0:00:00]} Nxc3 {[%emt 0:00:00]} 48. Nxc3 {
[%emt 0:00:00]} Bxc3 {[%emt 0:00:00]} 49. Rxe3 {[%emt 0:00:00]} Bb4+ {[%emt 0:
00:00]} 50. Ka4 {[%emt 0:00:00]} Kd5 {[%emt 0:00:00]} 51. Re8 {[%emt 0:00:00]}
Kc6 {[%emt 0:01:37]} 52. Re6+ {[%emt 0:00:00]} Kd5 {[%emt 0:00:24]} 53. Ra6 {
[%emt 0:00:00]} Ke4 {[%emt 0:00:35]} 54. Rxa5 {[%emt 0:00:00]} Bxa5 {[%emt 0:
00:19]} 55. Kxa5 {[%emt 0:00:00]} Kf3 {[%emt 0:00:15]} 56. b4 {[%emt 0:00:00]}
g4 {[%emt 0:02:07]} 57. b5 {[%emt 0:00:00]} Kg2 {[%emt 0:00:16]} 58. b6 {
[%emt 0:00:00]} Kxh2 {[%emt 0:00:17]} 59. b7 {[%emt 0:00:00]} Kxg3 {[%emt 0:00:
19]} 60. b8=Q+ {[%emt 0:00:00]} Kg2 {[%emt 0:01:37]} 61. Kb4 {[%emt 0:00:00]}
g3 {[%emt 0:00:18]} 62. Kc3 {[%emt 0:00:00]} Kf2 {[%emt 0:00:52]} 63. Qf4+ {
[%emt 0:00:00]} Kg2 {[%emt 0:00:28]} 64. Kd2 {[%emt 0:00:00]} Kh1 {[%emt 0:00:
16]} 65. Qh4+ {[%emt 0:00:00]} Kg2 {[%emt 0:00:24]} 66. Ke2 {[%emt 0:00:00]}
Kg1 {[%emt 0:00:32]} 67. Kf3 {[%emt 0:00:00]} g2 {[%emt 0:00:26]} 68. Qf2+ {
[%emt 0:00:00]} Kh1 {[%emt 0:00:19]} 69. Qxg2# {[%emt 0:00:00]} 1-0

[Event "6e Open International d'Echecs des Sable"]
[Site "Sables d'Olonne, France"]
[Date "2019.07.15"]
[Round "3.7"]
[White "Cotonnec, Melkior"]
[Black "Flachet, Thierry"]
[Result "1-0"]
[ECO "A00"]
[WhiteElo "2293"]
[BlackElo "2043"]
[Annotator "jeanluc"]
[PlyCount "49"]
[EventDate "2019.??.??"]
[TimeControl "1/40:0"]
[WhiteClock "0:20:59"]
[BlackClock "0:23:55"]

1. b4 {[%emt 0:00:00]} d5 {[%emt 0:00:00]} 2. Bb2 {[%emt 0:00:00]} Bf5 {
[%emt 0:00:00]} 3. Nf3 {[%emt 0:00:00]} h6 {[%emt 0:00:00]} 4. e3 {[%emt 0:00:
00]} e6 {[%emt 0:00:00]} 5. c4 {[%emt 0:00:00]} Nf6 {[%emt 0:00:00]} 6. a3 {
[%emt 0:00:00]} Be7 {[%emt 0:00:00]} 7. Nc3 {[%emt 0:00:00]} O-O {[%emt 0:00:
00]} 8. d4 {[%emt 0:00:00]} c6 {[%emt 0:00:00]} 9. Be2 {[%emt 0:00:00]} Nbd7 {
[%emt 0:00:00]} 10. O-O {[%emt 0:00:00]} a5 {[%emt 0:00:00]} 11. Qb3 {[%emt 0:
00:00]} axb4 {[%emt 0:00:00]} 12. axb4 {[%emt 0:00:00]} Qb6 {[%emt 0:00:00]}
13. c5 {[%emt 0:00:00]} Qc7 {[%emt 0:00:00]} 14. b5 {[%emt 0:00:00]} Rab8 {
[%emt 0:00:00]} 15. Ra7 {[%emt 0:00:00]} Qc8 {[%emt 0:00:00]} 16. Qa4 {[%emt 0:
00:00]} Ra8 {[%emt 0:00:00]} 17. Ra1 {[%emt 0:00:00]} Rxa7 {[%emt 0:00:00]} 18.
Qxa7 {[%emt 0:00:00]} Nb8 {[%emt 0:00:00]} 19. Ne5 {[%emt 0:00:00]} Nfd7 {
[%emt 0:00:00]} 20. bxc6 {[%emt 0:00:00]} Nxc6 {[%emt 0:00:00]} 21. Nxc6 {
[%emt 0:00:00]} bxc6 {[%emt 0:00:00]} 22. Na4 {[%emt 0:00:00]} Qd8 {[%emt 0:00:
00]} 23. Bc3 {[%emt 0:00:00]} Nb8 {[%emt 0:00:00]} 24. Ba5 {[%emt 0:00:00]} Qd7
{[%emt 0:00:00]} 25. Bc7 {[%emt 0:00:00]} 1-0

[Event "6e Open International d'Echecs des Sable"]
[Site "Sables d'Olonne, France"]
[Date "2019.07.15"]
[Round "4.1"]
[White "Troubat, Alexandre"]
[Black "Prie, Eric"]
[Result "0-1"]
[ECO "B01"]
[WhiteElo "1932"]
[BlackElo "2436"]
[Annotator "jeanluc"]
[PlyCount "60"]
[EventDate "2019.??.??"]
[TimeControl "1/40:0"]
[WhiteClock "0:00:51"]
[BlackClock "0:16:08"]

1. e4 {[%emt 0:00:00]} d5 {[%emt 0:00:00]} 2. exd5 {[%emt 0:00:00]} Qxd5 {
[%emt 0:00:00]} 3. Nf3 {[%emt 0:00:00]} Bg4 {[%emt 0:00:00]} 4. Be2 {[%emt 0:
00:00]} Nc6 {[%emt 0:00:00]} 5. d4 {[%emt 0:00:00]} O-O-O {[%emt 0:00:00]} 6.
c4 {[%emt 0:00:00]} Qd7 {[%emt 0:00:00]} 7. d5 {[%emt 0:00:00]} Bxf3 {[%emt 0:
00:00]} 8. Bxf3 {[%emt 0:00:00]} Ne5 {[%emt 0:00:00]} 9. Nc3 {[%emt 0:00:00]}
Nf6 {[%emt 0:00:00]} 10. O-O {[%emt 0:00:00]} e6 {[%emt 0:00:00]} 11. dxe6 {
[%emt 0:00:00]} Qxe6 {[%emt 0:00:00]} 12. Bd5 {[%emt 0:00:00]} Qf5 {[%emt 0:00:
00]} 13. Qa4 {[%emt 0:00:00]} a6 {[%emt 0:00:00]} 14. Re1 {[%emt 0:00:00]} Bc5
{[%emt 0:00:00]} 15. Be3 {[%emt 0:00:00]} Bxe3 {[%emt 0:00:00]} 16. Rxe3 {
[%emt 0:00:00]} Nfg4 {[%emt 0:00:00]} 17. Re2 {[%emt 0:00:00]} Qf4 {[%emt 0:00:
00]} 18. g3 {[%emt 0:00:00]} Qh6 {[%emt 0:00:00]} 19. f4 {[%emt 0:00:13]} Qb6+
{[%emt 0:00:00]} 20. Kh1 {[%emt 0:01:42]} Nd3 {[%emt 0:00:00]} 21. Bxf7 {
[%emt 0:01:45]} h5 {[%emt 0:00:00]} 22. h4 {[%emt 0:01:50]} Kb8 {[%emt 0:00:00]
} 23. Bd5 {[%emt 0:04:01]} Ndf2+ {[%emt 0:00:00]} 24. Kg2 {[%emt 0:00:31]} Ne3+
{[%emt 0:00:00]} 25. Kf3 {[%emt 0:03:36]} Nf5 {[%emt 0:00:00]} 26. Rxf2 {
[%emt 0:02:56]} Qe3+ {[%emt 0:00:00]} 27. Kg2 {[%emt 0:00:13]} Qxg3+ {[%emt 0:
00:00]} 28. Kf1 {[%emt 0:00:16]} Ne3+ {[%emt 0:00:00]} 29. Ke2 {[%emt 0:00:44]}
Rhe8 {[%emt 0:01:07]} 30. Be4 {[%emt 0:01:22]} Ng4 {[%emt 0:02:45]} 0-1

[Event "6e Open International d'Echecs des Sable"]
[Site "Sables d'Olonne, France"]
[Date "2019.07.15"]
[Round "4.2"]
[White "Colin, Vincent"]
[Black "Bujisho, Benjamin"]
[Result "1-0"]
[ECO "A13"]
[WhiteElo "2370"]
[BlackElo "2326"]
[Annotator "jeanluc"]
[PlyCount "73"]
[EventDate "2019.??.??"]
[TimeControl "1/40:0"]
[WhiteClock "0:19:17"]
[BlackClock "0:01:29"]

1. Nf3 {[%emt 0:00:00]} Nf6 {[%emt 0:00:00]} 2. c4 {[%emt 0:00:00]} e6 {
[%emt 0:00:00]} 3. e3 {[%emt 0:00:00]} b6 {[%emt 0:00:00]} 4. b3 {[%emt 0:00:
00]} Bb7 {[%emt 0:00:00]} 5. Bb2 {[%emt 0:00:00]} g6 {[%emt 0:00:00]} 6. g4 {
[%emt 0:00:00]} h6 {[%emt 0:00:00]} 7. Rg1 {[%emt 0:00:00]} Bg7 {[%emt 0:00:00]
} 8. h4 {[%emt 0:00:00]} d6 {[%emt 0:00:00]} 9. Be2 {[%emt 0:00:00]} Nbd7 {
[%emt 0:00:00]} 10. Qc2 {[%emt 0:00:00]} Qe7 {[%emt 0:00:00]} 11. Nc3 {[%emt 0:
00:00]} a6 {[%emt 0:00:00]} 12. g5 {[%emt 0:00:00]} hxg5 {[%emt 0:00:00]} 13.
hxg5 {[%emt 0:00:00]} Nh5 {[%emt 0:00:00]} 14. d4 {[%emt 0:00:00]} c5 {[%emt 0:
00:00]} 15. O-O-O {[%emt 0:00:00]} O-O-O {[%emt 0:00:00]} 16. d5 {[%emt 0:00:
00]} e5 {[%emt 0:00:00]} 17. Ne4 {[%emt 0:00:00]} Kb8 {[%emt 0:00:00]} 18. Kb1
{[%emt 0:00:00]} Ka7 {[%emt 0:00:00]} 19. a3 {[%emt 0:00:00]} Rb8 {[%emt 0:00:
00]} 20. Ka2 {[%emt 0:00:00]} Bf8 {[%emt 0:00:00]} 21. Rh1 {[%emt 0:00:00]} Qd8
{[%emt 0:00:00]} 22. Nfd2 {[%emt 0:00:00]} Qc7 {[%emt 0:00:00]} 23. Ng3 {
[%emt 0:00:00]} Nxg3 {[%emt 0:02:44]} 24. Rxh8 {[%emt 0:00:00]} Nxe2 {[%emt 0:
00:13]} 25. Qd3 {[%emt 0:00:00]} Nd4 {[%emt 0:01:26]} 26. exd4 {[%emt 0:00:00]}
exd4 {[%emt 0:03:38]} 27. f4 {[%emt 0:00:00]} b5 {[%emt 0:00:33]} 28. Rh7 {
[%emt 0:00:00]} bxc4 {[%emt 0:01:05]} 29. bxc4 {[%emt 0:00:00]} Nb6 {[%emt 0:
02:08]} 30. Qxg6 {[%emt 0:00:00]} Nxc4 {[%emt 0:04:39]} 31. Rxf7 {[%emt 0:00:
00]} Be7 {[%emt 0:00:13]} 32. Qe6 {[%emt 0:00:00]} Ne3 {[%emt 0:03:58]} 33.
Rxe7 {[%emt 0:00:00]} Qa5 {[%emt 0:00:47]} 34. Nb3 {[%emt 0:00:35]} Qa4 {
[%emt 0:00:17]} 35. Rxd4 {[%emt 0:03:46]} cxd4 {[%emt 0:00:37]} 36. Bxd4+ {
[%emt 0:00:24]} Ka8 {[%emt 0:00:13]} 37. Qxe3 {[%emt 0:00:38]} 1-0

[Event "6e Open International d'Echecs des Sable"]
[Site "Sables d'Olonne, France"]
[Date "2019.07.15"]
[Round "4.3"]
[White "Vidal, Llewellyn"]
[Black "Mariette, Lucas"]
[Result "1/2-1/2"]
[ECO "A28"]
[WhiteElo "2336"]
[BlackElo "2244"]
[Annotator "jeanluc"]
[PlyCount "94"]
[EventDate "2019.??.??"]
[TimeControl "1/40:0"]
[WhiteClock "0:34:04"]
[BlackClock "0:27:35"]

1. c4 {[%emt 0:00:00]} e5 {[%emt 0:00:00]} 2. Nc3 {[%emt 0:00:00]} Nf6 {
[%emt 0:00:00]} 3. Nf3 {[%emt 0:00:00]} Nc6 {[%emt 0:00:00]} 4. e4 {[%emt 0:00:
00]} Bb4 {[%emt 0:00:00]} 5. d3 {[%emt 0:00:00]} O-O {[%emt 0:00:00]} 6. a3 {
[%emt 0:00:00]} Bxc3+ {[%emt 0:00:00]} 7. bxc3 {[%emt 0:00:00]} d6 {[%emt 0:00:
00]} 8. g3 {[%emt 0:00:00]} Ne7 {[%emt 0:00:00]} 9. Bg2 {[%emt 0:00:00]} c6 {
[%emt 0:00:00]} 10. O-O {[%emt 0:00:00]} Qc7 {[%emt 0:00:00]} 11. Bg5 {[%emt 0:
00:00]} Ne8 {[%emt 0:00:00]} 12. Nh4 {[%emt 0:00:00]} Be6 {[%emt 0:00:00]} 13.
Bxe7 {[%emt 0:00:00]} Qxe7 {[%emt 0:00:00]} 14. Nf5 {[%emt 0:00:00]} Bxf5 {
[%emt 0:00:00]} 15. exf5 {[%emt 0:00:00]} Rd8 {[%emt 0:00:00]} 16. Qa4 {
[%emt 0:00:00]} a6 {[%emt 0:00:00]} 17. Qa5 {[%emt 0:00:00]} Nf6 {[%emt 0:00:
00]} 18. Rab1 {[%emt 0:00:00]} d5 {[%emt 0:00:00]} 19. cxd5 {[%emt 0:00:00]}
cxd5 {[%emt 0:00:00]} 20. Rfe1 {[%emt 0:00:00]} Rfe8 {[%emt 0:00:00]} 21. Qb4 {
[%emt 0:00:00]} Qxb4 {[%emt 0:00:00]} 22. Rxb4 {[%emt 0:00:00]} Rd7 {[%emt 0:
00:00]} 23. h3 {[%emt 0:00:00]} Rc7 {[%emt 0:00:00]} 24. c4 {[%emt 0:00:00]}
dxc4 {[%emt 0:00:00]} 25. dxc4 {[%emt 0:00:00]} e4 {[%emt 0:00:00]} 26. g4 {
[%emt 0:00:00]} h6 {[%emt 0:00:00]} 27. Reb1 {[%emt 0:00:00]} Ree7 {[%emt 0:00:
53]} 28. Kh2 {[%emt 0:00:00]} a5 {[%emt 0:03:54]} 29. Ra4 {[%emt 0:00:00]} Rc5
{[%emt 0:01:14]} 30. Rb5 {[%emt 0:00:00]} Rec7 {[%emt 0:04:35]} 31. Raxa5 {
[%emt 0:14:30]} Rxc4 {[%emt 0:00:39]} 32. Ra8+ {[%emt 0:01:15]} Kh7 {[%emt 0:
00:13]} 33. Ra7 {[%emt 0:00:50]} Rc2 {[%emt 0:01:54]} 34. Rbxb7 {[%emt 0:00:52]
} Rxb7 {[%emt 0:00:12]} 35. Rxb7 {[%emt 0:00:17]} Rxf2 {[%emt 0:00:19]} 36.
Rxf7 {[%emt 0:00:20]} Ra2 {[%emt 0:00:32]} 37. Re7 {[%emt 0:00:50]} Rxa3 {
[%emt 0:00:45]} 38. Re6 {[%emt 0:00:29]} Re3 {[%emt 0:01:44]} 39. Kg1 {[%emt 0:
00:58]} Kg8 {[%emt 0:00:43]} 40. Kf2 {[%emt 0:01:14]} Ra3 {[%emt 0:00:20]} 41.
Bf1 {[%emt 0:00:17]} Kf8 {[%emt 0:04:08]} 42. Bg2 {[%emt 0:00:35]} Kf7 {
[%emt 0:03:37]} 43. Bf1 {[%emt 0:00:27]} Kf8 {[%emt 0:00:40]} 44. Kg2 {[%emt 0:
00:42]} Nd5 {[%emt 0:00:00]} 45. Rxe4 {[%emt 0:00:00]} Ne3+ {[%emt 0:00:00]}
46. Kf2 {[%emt 0:00:00]} Nxf1 {[%emt 0:00:00]} 47. Kxf1 {[%emt 0:00:00]} Rxh3 {
[%emt 0:00:00]} 1/2-1/2

[Event "6e Open International d'Echecs des Sable"]
[Site "Sables d'Olonne, France"]
[Date "2019.07.15"]
[Round "4.4"]
[White "Duboue, Peio"]
[Black "Le Pen, Steven"]
[Result "1-0"]
[ECO "D02"]
[WhiteElo "2409"]
[BlackElo "2094"]
[Annotator "jeanluc"]
[PlyCount "59"]
[EventDate "2019.??.??"]
[TimeControl "1/40:0"]
[WhiteClock "0:55:23"]
[BlackClock "0:01:47"]

1. d4 {[%emt 0:00:00]} Nf6 {[%emt 0:00:00]} 2. Bf4 {[%emt 0:00:00]} g6 {
[%emt 0:00:00]} 3. e3 {[%emt 0:00:00]} Bg7 {[%emt 0:00:00]} 4. Be2 {[%emt 0:00:
00]} d5 {[%emt 0:00:00]} 5. Nf3 {[%emt 0:00:00]} c5 {[%emt 0:00:00]} 6. c3 {
[%emt 0:00:00]} Nc6 {[%emt 0:00:00]} 7. h3 {[%emt 0:00:00]} O-O {[%emt 0:00:00]
} 8. Nbd2 {[%emt 0:00:00]} Nd7 {[%emt 0:00:00]} 9. O-O {[%emt 0:00:00]} e5 {
[%emt 0:00:00]} 10. dxe5 {[%emt 0:00:00]} Ndxe5 {[%emt 0:00:00]} 11. Nxe5 {
[%emt 0:00:00]} Nxe5 {[%emt 0:00:00]} 12. Nf3 {[%emt 0:00:00]} Nc6 {[%emt 0:00:
00]} 13. Qb3 {[%emt 0:00:00]} Na5 {[%emt 0:00:00]} 14. Qa3 {[%emt 0:00:00]} Qb6
{[%emt 0:00:00]} 15. Rad1 {[%emt 0:00:00]} Be6 {[%emt 0:00:00]} 16. b4 {
[%emt 0:00:00]} cxb4 {[%emt 0:00:00]} 17. cxb4 {[%emt 0:00:00]} Nc4 {[%emt 0:
00:00]} 18. Qb3 {[%emt 0:00:00]} a5 {[%emt 0:00:00]} 19. b5 {[%emt 0:00:00]} a4
{[%emt 0:00:00]} 20. Qb4 {[%emt 0:00:00]} Rfc8 {[%emt 0:00:00]} 21. Nd4 {
[%emt 0:00:00]} Ra5 {[%emt 0:00:00]} 22. Nxe6 {[%emt 0:00:00]} fxe6 {[%emt 0:
00:00]} 23. e4 {[%emt 0:00:00]} Qxb5 {[%emt 0:00:00]} 24. Qe7 {[%emt 0:00:00]}
Re8 {[%emt 0:00:15]} 25. Qc7 {[%emt 0:00:00]} Qc5 {[%emt 0:05:33]} 26. exd5 {
[%emt 0:00:00]} e5 {[%emt 0:04:58]} 27. Qd7 {[%emt 0:00:00]} Re7 {[%emt 0:02:
52]} 28. Qd8+ {[%emt 0:00:00]} Bf8 {[%emt 0:02:20]} 29. Bxc4 {[%emt 0:00:00]}
Qxc4 {[%emt 0:01:35]} 30. Bh6 {[%emt 0:00:00]} 1-0